bitfinex/quotes_BTCUSD_20251015
["timestamp","ask_amount","ask_price","bid_price","bid_amount"]
[1760549926787,0.14,110830.0,110820.0,0.60021268]
[1760549927019,0.14,110830.0,110820.0,1.02095253]
[1760549927850,0.14,110830.0,110820.0,0.60121268]
[1760549931099,0.14,110830.0,110820.0,0.18147283]
[1760549931315,0.14,110830.0,110820.0,0.60121268]
[1760549931948,0.14,110830.0,110820.0,1.02095253]
[1760549935575,0.14,110830.0,110820.0,0.18147283]
[1760549935799,0.14,110830.0,110820.0,0.60116079]
[1760549936055,0.154,110830.0,110820.0,0.001]
[1760549936292,0.86914611,110830.0,110820.0,0.001]
[1760549936533,0.61442537,110830.0,110820.0,0.18147283]
[1760549937441,1.03411333,110830.0,110820.0,0.18047283]
[1760549938121,0.61442537,110830.0,110820.0,0.18047283]
[1760549938339,1.21456988,110830.0,110820.0,0.18047283]
[1760549938568,0.61442537,110830.0,110820.0,0.18047283]
[1760549939023,1.03411333,110830.0,110820.0,0.18047283]
[1760549939475,0.60598836,110830.0,110820.0,0.18047283]
[1760549939690,0.58911389,110830.0,110820.0,0.18047283]
[1760549941312,1.20612019,110830.0,110820.0,0.18047283]
[1760549941513,1.02566364,110830.0,110820.0,0.18047283]
[1760549942135,5.0,110820.0,110810.0,0.18966404]
[1760549942337,1.08848981,110820.0,110810.0,0.18063959]
[1760549942554,1.18927468,110820.0,110810.0,0.18063959]
[1760549942782,1.20612649,110820.0,110810.0,0.18063959]
[1760549942987,1.62581445,110820.0,110810.0,0.00015047]
[1760549943191,6.72392231,110820.0,110810.0,0.18063959]
[1760549943405,5.58911389,110820.0,110810.0,0.18063959]
[1760549943611,0.15942377,110820.0,110810.0,0.60032755]
[1760549943812,0.14,110820.0,110810.0,0.18063959]
[1760549945490,0.55968796,110820.0,110810.0,0.18063959]
[1760549945702,0.5790982,110820.0,110810.0,0.18063959]
[1760549945936,0.22363601,110820.0,110810.0,0.18063959]
[1760549946160,0.14,110820.0,110810.0,0.18063959]
[1760549946618,0.14,110820.0,110810.0,0.60032755]
[1760549946827,0.14,110820.0,110810.0,0.18063959]
[1760549947047,0.14,110820.0,110810.0,0.60032755]
[1760549947887,0.14,110820.0,110810.0,0.60132755]
[1760549948523,0.14,110820.0,110810.0,0.18163959]
[1760549950698,0.14,110820.0,110810.0,0.60132755]
[1760549950906,0.14,110820.0,110810.0,0.18163959]
[1760549951134,0.14,110820.0,110810.0,0.60132755]
[1760549951799,0.14,110820.0,110810.0,0.18163959]
[1760549952021,0.14,110820.0,110810.0,0.60132755]
[1760549952231,0.14,110820.0,110810.0,0.18163959]
[1760549952460,0.14,110820.0,110810.0,0.60132755]
[1760549953568,0.14,110820.0,110810.0,0.18163959]
[1760549953811,0.14,110820.0,110810.0,0.60132755]
[1760549955136,0.14,110820.0,110810.0,1.11070563]
[1760549955351,0.00918043,110850.0,110840.0,0.18044027]
[1760549955604,0.13918043,110850.0,110840.0,1.01981619]
[1760549955817,0.13,110850.0,110840.0,1.01981619]
[1760549957120,0.13,110850.0,110840.0,0.60012823]
[1760549957571,0.13,110850.0,110840.0,0.18044027]
[1760549959948,0.13,110850.0,110840.0,0.60012823]
[1760549960364,0.13,110850.0,110840.0,0.18044027]
[1760549960571,0.13,110850.0,110840.0,0.60012823]
[1760549961663,0.13,110850.0,110840.0,0.18044027]
[1760549961889,0.13,110850.0,110840.0,0.60012823]
[1760549962381,0.125,110850.0,110840.0,0.60012823]
[1760549963512,0.125,110850.0,110840.0,1.01981619]
[1760549964415,1e-08,110850.0,110840.0,0.27013039]
[1760549964692,0.00058993,110860.0,110850.0,0.18042399]
[1760549964937,0.06058993,110860.0,110850.0,0.18042399]
[1760549965170,0.06058993,110860.0,110850.0,0.60011195]
[1760549965381,0.00058993,110860.0,110850.0,0.27011411]
[1760549965815,0.00058993,110860.0,110850.0,0.68980207]
[1760549966037,0.00058993,110860.0,110850.0,0.69080207]
[1760549967167,0.00058993,110860.0,110850.0,0.69180207]
[1760549968764,1e-08,110870.0,110860.0,0.18040772]
[1760549968980,0.0252,110890.0,110880.0,0.18037518]
[1760549969214,0.0352,110890.0,110880.0,1.10944122]
[1760549969451,0.0352,110890.0,110880.0,0.2700653]
[1760549969657,0.0352,110890.0,110880.0,1.10944122]
[1760549970113,0.0352,110890.0,110880.0,1.11044122]
[1760549970530,0.0352,110890.0,110880.0,0.69075326]
[1760549970764,0.0352,110890.0,110880.0,0.18137518]
[1760549970963,0.0352,110890.0,110880.0,0.60106314]
[1760549971165,0.0352,110890.0,110880.0,0.60206314]
[1760549971372,0.0352,110890.0,110880.0,0.60106314]
[1760549971573,0.0352,110890.0,110880.0,0.18237518]
[1760549971784,0.0102,110890.0,110880.0,0.18237518]
[1760549972607,0.02696073,110890.0,110880.0,0.18237518]
[1760549973847,0.11665085,110890.0,110880.0,0.18137518]
[1760549974302,0.20386609,110890.0,110880.0,0.18037518]
[1760549974507,0.23647934,110890.0,110880.0,0.18037518]
[1760549974711,0.62569948,110890.0,110880.0,0.18037518]
[1760549974910,0.17034986,110890.0,110880.0,0.18037518]
[1760549975114,0.15103334,110890.0,110880.0,0.18037518]
[1760549975327,0.35070877,110890.0,110880.0,0.18037518]
[1760549975533,5.18038599,110880.0,110870.0,0.18039144]
[1760549975735,0.66665271,110880.0,110870.0,0.18039144]
[1760549975963,0.67503475,110880.0,110870.0,0.18039144]
[1760549976235,0.75634283,110880.0,110870.0,0.18039144]
[1760549976445,0.76472501,110880.0,110870.0,0.18039144]
[1760549976888,0.94510019,110880.0,110870.0,0.18039144]
[1760549977158,0.34,110870.0,110860.0,0.1894281]
[1760549977418,1.08473672,110870.0,110860.0,0.18040772]
[1760549977838,0.60830134,110870.0,110860.0,0.18040772]
[1760549978257,1.11712764,110870.0,110860.0,0.18040772]
[1760549978467,1.11712764,110870.0,110860.0,0.18140772]
[1760549978682,0.59991603,110870.0,110860.0,0.18140772]
[1760549978891,0.51022591,110870.0,110860.0,0.18140772]
[1760549979316,0.55100484,110870.0,110860.0,0.18140772]
[1760549979524,1.00329156,110870.0,110860.0,0.18140772]
[1760549979734,0.52685618,110870.0,110860.0,0.18140772]
[1760549979974,0.54325149,110870.0,110860.0,0.18140772]
[1760549980184,1.01968687,110870.0,110860.0,0.001]
[1760549980394,6.14147397,110870.0,110860.0,0.18140772]
[1760549980603,6.1413483,110870.0,110860.0,0.18140772]
[1760549981257,6.08393431,110870.0,110860.0,0.18040772]
[1760549981682,6.10912282,110870.0,110860.0,0.18040772]
[1760549982098,6.08393431,110870.0,110860.0,0.18040772]
[1760549982528,5.60849893,110870.0,110860.0,0.18040772]
[1760549982737,0.60904686,110870.0,110860.0,0.18040772]
[1760549982951,0.61644372,110870.0,110860.0,0.18040772]
[1760549983165,0.5267536,110870.0,110860.0,0.18040772]
[1760549983373,0.50256363,110870.0,110860.0,0.18040772]
[1760549984267,0.50156363,110870.0,110860.0,0.18040772]
[1760549984715,0.52677287,110870.0,110860.0,0.18040772]
[1760549985207,0.18677287,110870.0,110860.0,0.18040772]
[1760549985421,0.21098679,110870.0,110860.0,0.18040772]
[1760549986782,0.21157665,110870.0,110860.0,0.18040772]
[1760549988339,0.17932954,110870.0,110860.0,0.18040772]
[1760549988546,0.0807394,110880.0,110870.0,0.18039144]
[1760549988751,0.05421939,110880.0,110870.0,0.18039144]
[1760549989845,0.03,110880.0,110870.0,0.65682682]
[1760549990043,0.0002,110890.0,110880.0,0.18037518]
[1760549990255,0.1302,110890.0,110880.0,0.18037518]
[1760549991537,0.1302,110890.0,110880.0,0.18137518]
[1760549996161,0.1252,110890.0,110880.0,0.18137518]
[1760549996727,0.12637943,110890.0,110880.0,0.18137518]
[1760549996921,0.15862654,110890.0,110880.0,0.18137518]
[1760550000473,0.22395547,110890.0,110880.0,0.18137518]
[1760550000688,0.25176534,110890.0,110880.0,0.18137518]
[1760550001288,0.20327305,110890.0,110880.0,0.18137518]
[1760550001730,0.25176534,110890.0,110880.0,0.18137518]
[1760550001893,0.21951823,110890.0,110880.0,0.18137518]
[1760550002705,0.30920835,110890.0,110880.0,0.18137518]
[1760550003710,0.21951823,110890.0,110880.0,0.18137518]
[1760550003927,0.25183763,110890.0,110880.0,0.18137518]
[1760550004146,0.21951823,110890.0,110880.0,0.18137518]
[1760550004362,0.25183331,110890.0,110880.0,0.18137518]
[1760550004835,0.21951823,110890.0,110880.0,0.18137518]
[1760550005236,0.25182361,110890.0,110880.0,0.18137518]
[1760550005451,0.21951582,110890.0,110880.0,0.18137518]
[1760550005654,0.25182365,110890.0,110880.0,0.18137518]
[1760550006106,0.21951582,110890.0,110880.0,0.18137518]
[1760550006327,0.25182914,110890.0,110880.0,0.18137518]
[1760550007390,0.34151122,110890.0,110880.0,0.18137518]
[1760550007625,0.25182914,110890.0,110880.0,0.18137518]
[1760550008924,1.41884162,110890.0,110880.0,0.18137518]
[1760550009126,1.56688721,110890.0,110880.0,0.18137518]
[1760550009593,0.82956485,110890.0,110880.0,0.18137518]
[1760550009817,1.65656929,110890.0,110880.0,0.001]
[1760550010046,6.71083157,110890.0,110880.0,0.001]
[1760550010315,1.25771162,110880.0,110860.0,0.18942555]
[1760550010537,0.03233927,110870.0,110860.0,0.18957593]
[1760550010742,0.19698337,110870.0,110860.0,0.18957593]
[1760550011388,0.28667349,110870.0,110860.0,0.18957593]
[1760550012178,0.25433422,110870.0,110860.0,0.18957593]
[1760550012596,1.20438729,110870.0,110860.0,0.18957848]
[1760550012758,1.20438729,110870.0,110860.0,0.00015038]
[1760550012759,6.59106404,110870.0,110860.0,0.00015038]
[1760550012986,6.60723368,110870.0,110860.0,0.00015038]
[1760550013183,6.63957406,110870.0,110860.0,0.1805581]
[1760550013388,6.63957406,110870.0,110860.0,0.00015038]
[1760550013597,6.64342412,110870.0,110860.0,0.00015038]
[1760550014217,6.60724184,110870.0,110860.0,0.00015038]
[1760550014423,6.64342412,110870.0,110860.0,0.00015038]
[1760550015321,6.67574242,110870.0,110860.0,0.00015038]
[1760550015523,1.58055676,110870.0,110860.0,0.1805581]
[1760550015758,1.40016532,110870.0,110860.0,0.1805581]
[1760550015956,1.58055676,110870.0,110860.0,0.1805581]
[1760550018569,1.58055676,110870.0,110860.0,0.00015038]
[1760550018886,6.58055676,110870.0,110860.0,0.00015038]
[1760550019089,6.71874775,110870.0,110860.0,0.00015038]
[1760550019249,6.71356272,110870.0,110860.0,0.00015038]
[1760550019468,6.81585018,110870.0,110860.0,0.00015038]
[1760550020273,6.30636319,110870.0,110860.0,0.00015038]
[1760550020442,6.30736319,110870.0,110860.0,0.00015038]
[1760550021085,6.30636319,110870.0,110860.0,0.00015038]
[1760550021300,6.30591446,110870.0,110860.0,0.00015038]
[1760550021513,6.61716174,110870.0,110860.0,0.00015038]
[1760550022054,6.63384253,110870.0,110860.0,0.00015038]
[1760550022939,6.64973193,110870.0,110860.0,0.00015038]
[1760550024648,5.89500445,110870.0,110860.0,0.00015038]
[1760550024897,6.63305114,110870.0,110860.0,0.00015038]
[1760550025340,6.25847068,110850.0,110840.0,0.0717521]
[1760550025557,6.5367752,110850.0,110840.0,0.0717521]
[1760550025767,6.5367752,110850.0,110830.0,0.18946968]
[1760550025970,5.0,110840.0,110830.0,0.18946968]
[1760550026174,0.15620903,110840.0,110830.0,0.18946968]
[1760550026379,0.13681748,110840.0,110830.0,0.18946968]
[1760550027458,0.0195271,110850.0,110830.0,0.18946968]
[1760550027735,0.00013555,110850.0,110840.0,0.18044027]
[1760550029063,0.00013555,110850.0,110840.0,0.18144027]
[1760550031052,1.02860623,110850.0,110840.0,0.18044027]
[1760550031269,0.8843889,110850.0,110840.0,0.18044027]
[1760550031482,0.14634221,110850.0,110840.0,0.18044027]
[1760550031693,0.12695066,110850.0,110840.0,0.18044027]
[1760550032133,0.11013555,110850.0,110840.0,0.18044027]
[1760550032560,0.00013555,110850.0,110840.0,0.18044027]
[1760550036414,0.01013555,110850.0,110840.0,0.18044027]
[1760550036874,0.0269781,110850.0,110840.0,0.18044027]
[1760550037297,0.04636965,110850.0,110840.0,0.18044027]
[1760550037731,0.04637594,110850.0,110840.0,0.18044027]
[1760550038031,0.03637594,110850.0,110840.0,0.18044027]
[1760550038219,0.0363842,110850.0,110840.0,0.18044027]
[1760550041543,0.0563842,110850.0,110840.0,0.18044027]
[1760550042588,0.14389474,110850.0,110840.0,0.18044027]
[1760550042794,0.29708671,110850.0,110840.0,0.18044027]
[1760550043003,0.4775107,110850.0,110840.0,0.18044027]
[1760550043213,1.32138242,110850.0,110830.0,0.18044567]
[1760550043422,0.99926815,110840.0,110820.0,0.18948187]
[1760550043628,0.77042315,110830.0,110810.0,0.18041596]
[1760550043843,1.16396577,110830.0,110810.0,0.18041596]
[1760550044053,0.03237646,110820.0,110810.0,0.18041596]
[1760550044259,0.06862511,110820.0,110810.0,0.18041596]
[1760550044487,0.17862511,110820.0,110810.0,0.18041596]
[1760550044893,0.17862511,110820.0,110810.0,0.18141596]
[1760550045105,0.17862674,110820.0,110810.0,0.18141596]
[1760550045308,0.16176801,110820.0,110810.0,0.18041596]
[1760550045512,0.16179254,110820.0,110810.0,0.18141596]
[1760550045759,0.01941608,110820.0,110810.0,0.18141596]
[1760550046392,0.01941608,110820.0,110810.0,0.18241596]
[1760550046814,0.2422851,110820.0,110810.0,0.002]
[1760550047022,1.18560015,110820.0,110810.0,0.002]
[1760550047225,1.18560015,110820.0,110810.0,0.18248912]
[1760550047445,1.19456667,110820.0,110810.0,0.002]
[1760550047577,1.20299405,110820.0,110810.0,0.18248912]
[1760550047789,0.2744548,110820.0,110810.0,0.002]
[1760550047997,0.26602742,110820.0,110810.0,0.18248912]
[1760550049067,0.12602742,110820.0,110810.0,0.18248912]
[1760550049279,0.12598454,110820.0,110810.0,0.18248912]
[1760550050149,0.22365096,110820.0,110810.0,0.18248912]
[1760550051197,0.25595665,110820.0,110810.0,0.18248912]
[1760550051412,0.25591954,110820.0,110810.0,0.18248912]
[1760550054230,0.23172958,110820.0,110810.0,0.18248912]
[1760550054669,0.04363085,110820.0,110810.0,0.18248912]
[1760550054901,0.06044322,110820.0,110810.0,0.18248912]
[1760550055099,0.04363085,110820.0,110810.0,0.18248912]
[1760550055306,0.01941608,110820.0,110810.0,0.18248912]
[1760550055513,0.01941608,110820.0,110810.0,0.27217924]
[1760550055752,0.01941608,110830.0,110820.0,0.18047283]
[1760550056184,0.05275288,110840.0,110830.0,0.18045655]
[1760550056397,0.19956645,110840.0,110830.0,0.18045655]
[1760550057721,0.19044442,110840.0,110830.0,0.18045655]
[1760550057929,0.17363085,110840.0,110830.0,0.18045655]
[1760550058085,0.19044535,110840.0,110830.0,0.18045655]
[1760550059077,0.19968327,110840.0,110830.0,0.18045655]
[1760550060714,0.6765872,110840.0,110830.0,0.18045655]
[1760550060969,0.88933316,110840.0,110830.0,0.18045655]
[1760550061363,0.85702747,110840.0,110830.0,0.18045655]
[1760550061603,0.19968327,110840.0,110830.0,0.18045655]
[1760550061819,0.85702747,110840.0,110830.0,0.18045655]
[1760550062033,0.38012354,110840.0,110830.0,0.18045655]
[1760550062245,0.36070746,110840.0,110830.0,0.18045655]
[1760550062899,0.18026719,110840.0,110830.0,0.18045655]
[1760550063561,0.45038954,110840.0,110830.0,0.18045655]
[1760550063783,0.45038954,110840.0,110820.0,0.18046497]
[1760550063996,0.36070746,110840.0,110830.0,0.18045655]
[1760550064428,0.18026719,110840.0,110830.0,0.18045655]
[1760550064862,0.13923792,110840.0,110830.0,0.18045655]
[1760550068347,0.13923792,110840.0,110820.0,0.18046497]
[1760550068348,0.31967819,110840.0,110820.0,0.18046497]
[1760550069223,0.79658212,110840.0,110820.0,0.18046497]
[1760550069429,0.8159982,110840.0,110830.0,0.18045655]
[1760550069843,0.8159982,110840.0,110820.0,0.18046497]
[1760550070290,0.65736665,110830.0,110810.0,0.19123829]
[1760550070501,0.79678273,110830.0,110810.0,0.19124612]
[1760550070711,0.81360461,110830.0,110810.0,0.19124612]
[1760550070919,0.47941608,110830.0,110820.0,0.18047283]
[1760550071561,0.65987263,110830.0,110810.0,0.19224612]
[1760550071769,1.13677656,110830.0,110810.0,0.19224612]
[1760550071999,0.47941608,110830.0,110820.0,0.18047283]
[1760550072221,0.47941608,110830.0,110820.0,0.18147283]
[1760550072449,0.47941608,110830.0,110820.0,0.18247283]
[1760550072700,0.47941608,110830.0,110820.0,0.18147283]
[1760550073577,0.47941608,110830.0,110820.0,0.18047283]
[1760550073823,0.65987263,110830.0,110810.0,0.19224612]
[1760550074052,1.13677656,110830.0,110810.0,0.19224612]
[1760550074272,1.15360925,110830.0,110810.0,0.19124612]
[1760550074719,0.65737676,110820.0,110810.0,0.010757]
[1760550074940,0.80679284,110820.0,110810.0,0.010757]
[1760550075200,0.89647492,110820.0,110810.0,0.010757]
[1760550075868,1.00299599,110820.0,110810.0,0.010757]
[1760550076077,1.02721076,110820.0,110810.0,0.010757]
[1760550076577,0.46062475,110820.0,110810.0,0.010757]
[1760550076772,0.73284108,110820.0,110810.0,0.010757]
[1760550076981,0.91331391,110820.0,110810.0,0.010757]
[1760550077192,0.93752868,110820.0,110810.0,0.010757]
[1760550077391,0.91331391,110820.0,110810.0,0.010757]
[1760550077614,1.00299599,110820.0,110810.0,0.010757]
[1760550077818,6.02721076,110820.0,110810.0,0.010757]
[1760550078442,6.44411133,110820.0,110810.0,0.010757]
[1760550078647,6.46830129,110820.0,110810.0,0.010757]
[1760550079476,5.99139736,110820.0,110810.0,0.010757]
[1760550079700,6.33021448,110820.0,110810.0,0.010757]
[1760550080142,0.62857046,110820.0,110810.0,0.010757]
[1760550080342,0.80904329,110820.0,110810.0,0.010757]
[1760550080552,1.28593525,110820.0,110810.0,0.010757]
[1760550080761,1.28693525,110820.0,110810.0,0.010757]
[1760550081177,1.10546242,110820.0,110810.0,0.19124612]
[1760550081398,0.62014589,110820.0,110810.0,0.19124612]
[1760550081599,0.62114589,110820.0,110810.0,0.19124612]
[1760550082026,0.65212508,110820.0,110810.0,0.19124612]
[1760550082237,1.30950184,110820.0,110810.0,0.010757]
[1760550082438,0.18050114,110810.0,110790.0,0.17234506]
[1760550082640,0.78422405,110810.0,110790.0,0.17234506]
[1760550082855,0.80373549,110810.0,110790.0,0.17234506]
[1760550083060,0.89341757,110810.0,110790.0,0.17234506]
[1760550083674,0.89341757,110810.0,110790.0,0.17284704]
[1760550083875,0.71282107,110810.0,110800.0,0.18041005]
[1760550084287,0.14623506,110810.0,110800.0,0.18041005]
[1760550084413,0.60372291,110810.0,110800.0,0.18041005]
[1760550084614,0.62313899,110810.0,110800.0,0.18041005]
[1760550084814,0.14623506,110810.0,110800.0,0.18041005]
[1760550085023,0.60372291,110810.0,110800.0,0.18041005]
[1760550085224,0.12941608,110810.0,110800.0,0.18041005]
[1760550085429,0.11,110810.0,110800.0,0.18041005]
[1760550086407,0.08969012,110820.0,110810.0,0.18048912]
[1760550086664,0.23649909,110820.0,110810.0,0.18048912]
[1760550087211,0.31751594,110820.0,110810.0,0.18048912]
[1760550087821,0.14680897,110820.0,110810.0,0.18048912]
[1760550088197,0.13,110820.0,110810.0,0.18048912]
[1760550089006,0.13,110820.0,110810.0,0.27017924]
[1760550089233,0.00923792,110840.0,110830.0,0.18045655]
[1760550089599,0.13681472,110840.0,110830.0,0.18045655]
[1760550090241,0.12,110840.0,110830.0,0.18045655]
[1760550090878,0.21068208,110840.0,110820.0,0.18045822]
[1760550091302,0.21068208,110840.0,110830.0,0.18045655]
[1760550091796,0.121,110840.0,110830.0,0.18045655]
[1760550092225,0.12,110840.0,110830.0,0.18045655]
[1760550092663,0.12924013,110840.0,110830.0,0.65736048]
[1760550092896,0.2,110850.0,110840.0,0.18044027]
[1760550093336,0.2,110850.0,110830.0,0.27014667]
[1760550093553,0.24804123,110850.0,110830.0,0.27014667]
[1760550093773,0.24804123,110850.0,110840.0,0.18044027]
[1760550093984,0.21,110850.0,110840.0,0.18044027]
[1760550094845,0.21,110850.0,110840.0,0.6573442]
[1760550095070,0.2,110850.0,110840.0,0.6573442]
[1760550095509,0.2,110850.0,110840.0,0.18044027]
[1760550095733,0.2,110850.0,110840.0,0.74703432]
[1760550097443,0.2,110850.0,110840.0,1.22393825]
[1760550097657,0.2,110850.0,110840.0,1.08703432]
[1760550098081,0.2,110850.0,110840.0,1.11415564]
[1760550102361,0.2,110850.0,110840.0,1.08703432]
[1760550104379,0.2,110850.0,110840.0,0.61013039]
[1760550104794,0.2,110850.0,110840.0,1.08703432]
[1760550106054,0.2,110850.0,110840.0,0.61013039]
[1760550106262,0.2,110850.0,110840.0,1.08703432]
[1760550106683,0.2,110850.0,110840.0,1.56393825]
[1760550106861,0.2,110850.0,110840.0,1.08703432]
[1760550107123,0.2,110850.0,110840.0,1.56393825]
[1760550107747,0.00986669,110880.0,110870.0,0.18039144]
[1760550107954,0.14001702,110880.0,110870.0,0.18039144]
[1760550108158,0.13074009,110880.0,110870.0,0.18039144]
[1760550108776,0.13994809,110880.0,110870.0,0.18039144]
[1760550109395,0.13994809,110880.0,110860.0,0.18040772]
[1760550109598,0.13994809,110880.0,110870.0,0.18039144]
[1760550113738,0.14832535,110880.0,110870.0,0.18039144]
[1760550114437,0.16508784,110880.0,110870.0,0.18039144]
[1760550114668,0.88920144,110880.0,110860.0,0.18039879]
[1760550114887,0.86597052,110880.0,110860.0,0.18039879]
[1760550115104,0.47690393,110870.0,110850.0,0.2611688]
[1760550115318,0.8560425,110870.0,110850.0,0.0717521]
[1760550115522,0.70795086,110870.0,110850.0,0.25217609]
[1760550115726,0.02422071,110860.0,110850.0,0.25217609]
[1760550115935,0.19874124,110860.0,110850.0,0.25217609]
[1760550116139,0.04452053,110860.0,110850.0,0.18042399]
[1760550117600,0.0445419,110860.0,110850.0,0.18042399]
[1760550117803,0.1010683,110860.0,110850.0,0.18042399]
[1760550118235,0.07684795,110860.0,110850.0,0.18042399]
[1760550119258,0.12525268,110860.0,110850.0,0.18042399]
[1760550119616,0.07684795,110860.0,110850.0,0.18042399]
[1760550120185,0.12525268,110860.0,110850.0,0.18042399]
[1760550121242,0.09296192,110860.0,110850.0,0.18042399]
[1760550121875,0.12528308,110860.0,110850.0,0.18042399]
[1760550122134,0.09296192,110860.0,110850.0,0.18042399]
[1760550122525,1.13121786,110860.0,110840.0,0.18043672]
[1760550122741,0.08084883,110850.0,110840.0,0.18043672]
[1760550122949,0.12540602,110850.0,110840.0,0.18043672]
[1760550123805,0.1011574,110850.0,110840.0,0.18043672]
[1760550124439,0.06881787,110850.0,110840.0,0.18043672]
[1760550124658,0.06881787,110850.0,110840.0,1.00876563]
[1760550124866,0.02779418,110850.0,110840.0,1.00876563]
[1760550125077,0.02779418,110850.0,110840.0,1.00976563]
[1760550125287,0.01938026,110850.0,110840.0,1.00976563]
[1760550125496,0.01938026,110850.0,110840.0,1.34976563]
[1760550125708,0.05660021,110870.0,110860.0,0.18040772]
[1760550125913,0.06897299,110870.0,110860.0,0.27009784]
[1760550126325,0.06897299,110870.0,110860.0,1.00773663]
[1760550127323,0.06897299,110870.0,110860.0,0.27009784]
[1760550128503,0.04471231,110870.0,110860.0,1.00773663]
[1760550128714,0.04470692,110870.0,110860.0,1.00773663]
[1760550129616,0.00074009,110880.0,110870.0,0.18039144]
[1760550129822,0.00074009,110880.0,110870.0,1.00772035]
[1760550130037,0.00074009,110880.0,110870.0,0.61008156]
[1760550130243,0.00074009,110880.0,110870.0,1.34772035]
[1760550131189,0.0418577,110890.0,110880.0,0.18037518]
[1760550131390,0.025,110890.0,110880.0,1.01683126]
[1760550131584,0.04183254,110890.0,110880.0,1.01683126]
[1760550131819,0.05024883,110890.0,110880.0,1.01683126]
[1760550133073,0.05124883,110890.0,110880.0,1.05301354]
[1760550133274,0.026,110890.0,110880.0,1.39301354]
[1760550133414,0.025,110890.0,110880.0,1.39301354]
[1760550133850,0.026,110890.0,110880.0,1.39301354]
[1760550134231,0.025,110890.0,110880.0,1.39301354]
[1760550134445,0.026,110890.0,110880.0,1.39301354]
[1760550134668,0.026,110890.0,110880.0,0.65537475]
[1760550134884,0.026,110890.0,110880.0,0.64624758]
[1760550135912,0.025,110890.0,110880.0,0.64624758]
[1760550136124,0.026,110890.0,110880.0,0.64624758]
[1760550137000,0.026,110890.0,110880.0,1.38388637]
[1760550137762,0.03351997,110910.0,110900.0,0.18034265]
[1760550137989,0.02520241,110910.0,110900.0,1.38385384]
[1760550138197,8e-05,110920.0,110910.0,0.18032639]
[1760550138406,0.02542218,110920.0,110910.0,0.27001651]
[1760550139060,0.02542218,110920.0,110910.0,0.26901651]
[1760550139279,0.00862763,110920.0,110910.0,0.26901651]
[1760550139483,0.00862763,110920.0,110910.0,1.0066553]
[1760550139688,0.00962763,110920.0,110910.0,0.26901651]
[1760550139893,0.00962763,110920.0,110910.0,1.0066553]
[1760550140098,0.00862763,110920.0,110910.0,1.0066553]
[1760550140506,0.00962763,110920.0,110910.0,1.0066553]
[1760550140710,0.00962763,110920.0,110910.0,1.04283758]
[1760550140915,0.00123036,110920.0,110910.0,1.04283758]
[1760550141126,0.00123036,110920.0,110910.0,0.30519879]
[1760550141127,0.00962248,110920.0,110910.0,0.30519879]
[1760550141332,0.00123036,110920.0,110910.0,0.30519879]
[1760550141541,0.00123036,110920.0,110910.0,1.04283758]
[1760550141747,0.00123036,110920.0,110910.0,1.38283758]
[1760550142153,0.00123036,110920.0,110910.0,1.49671758]
[1760550142568,0.00258848,110920.0,110910.0,1.38283758]
[1760550142774,0.00258848,110920.0,110910.0,1.49671758]
[1760550142984,0.00358848,110920.0,110910.0,1.49671758]
[1760550144283,0.00358848,110920.0,110910.0,1.79205692]
[1760550144729,0.00358848,110920.0,110910.0,1.90589692]
[1760550144982,0.00258848,110920.0,110910.0,1.79205692]
[1760550145209,0.00358848,110920.0,110910.0,1.04519879]
[1760550145424,0.00358848,110920.0,110910.0,0.26901651]
[1760550146073,0.00258848,110920.0,110910.0,0.26901651]
[1760550146494,0.00358848,110920.0,110910.0,0.26901651]
[1760550150685,0.00358848,110920.0,110900.0,0.18034265]
[1760550150892,0.06158647,110920.0,110910.0,0.18032639]
[1760550151109,0.06158647,110920.0,110900.0,0.27003277]
[1760550151319,0.17158647,110920.0,110900.0,0.18034265]
[1760550151530,0.17997633,110920.0,110910.0,0.18032639]
[1760550151732,0.21131586,110920.0,110910.0,0.18032639]
[1760550151942,0.06158647,110920.0,110910.0,0.18032639]
[1760550152356,0.06058647,110920.0,110910.0,0.18032639]
[1760550152825,0.06158647,110920.0,110910.0,0.18032639]
[1760550153245,0.06998098,110920.0,110910.0,0.18032639]
[1760550153453,0.10232051,110920.0,110910.0,0.18032639]
[1760550153870,0.10232667,110920.0,110910.0,0.18032639]
[1760550155126,0.10236615,110920.0,110910.0,0.18032639]
[1760550155327,0.07810547,110920.0,110910.0,0.18032639]
[1760550155575,0.10232638,110920.0,110910.0,0.18032639]
[1760550156283,0.07810547,110920.0,110910.0,0.18032639]
[1760550156500,0.10233384,110920.0,110910.0,0.18032639]
[1760550156733,0.10469196,110920.0,110910.0,0.18032639]
[1760550156933,0.08046359,110920.0,110910.0,0.18032639]
[1760550158487,0.12897289,110920.0,110910.0,0.18032639]
[1760550158728,0.08046359,110920.0,110910.0,0.18032639]
[1760550159332,0.12897289,110920.0,110910.0,0.18032639]
[1760550160095,0.08046359,110920.0,110910.0,0.18032639]
[1760550160332,0.10965066,110920.0,110910.0,0.18032639]
[1760550160584,0.12906254,110920.0,110910.0,0.18032639]
[1760550163409,0.12908861,110920.0,110910.0,0.18032639]
[1760550165294,0.30939874,110920.0,110900.0,0.18034265]
[1760550165526,0.12673049,110920.0,110910.0,0.18032639]
[1760550166574,0.12573049,110920.0,110910.0,0.18032639]
[1760550166986,0.12908861,110920.0,110910.0,0.18032639]
[1760550167407,0.12808861,110920.0,110910.0,0.18032639]
[1760550167624,0.12908861,110920.0,110910.0,0.18032639]
[1760550168292,0.15908861,110920.0,110900.0,0.18034265]
[1760550168508,0.02427623,110910.0,110900.0,0.18034265]
[1760550168720,0.06226954,110910.0,110900.0,0.18034265]
[1760550170243,0.06226954,110910.0,110890.0,0.18936228]
[1760550170426,0.07602764,110910.0,110900.0,0.18034265]
[1760550170627,0.09288919,110910.0,110900.0,0.18034265]
[1760550170830,0.06055017,110910.0,110900.0,0.18034265]
[1760550171067,0.06055017,110910.0,110900.0,0.27003277]
[1760550174172,0.06898894,110910.0,110900.0,0.27003277]
[1760550174369,0.10132847,110910.0,110900.0,0.27003277]
[1760550174597,0.06898894,110910.0,110900.0,0.27003277]
[1760550175002,0.06898903,110910.0,110900.0,0.27003277]
[1760550175836,0.10132856,110910.0,110900.0,0.27003277]
[1760550176217,0.07075778,110910.0,110900.0,0.27003277]
[1760550177038,0.07075778,110910.0,110900.0,0.08969012]
[1760550177241,0.10309731,110910.0,110900.0,0.18034265]
[1760550177440,0.28342415,110910.0,110890.0,0.18035889]
[1760550177663,0.19843979,110890.0,110860.0,0.2611802]
[1760550178002,0.11945755,110890.0,110880.0,0.18037518]
[1760550178158,0.11101255,110890.0,110880.0,0.18037518]
[1760550178360,0.07867302,110890.0,110880.0,0.18037518]
[1760550179985,0.07967302,110890.0,110880.0,0.18037518]
[1760550180563,0.07967302,110890.0,110870.0,0.27006595]
[1760550180758,0.07967302,110890.0,110880.0,0.19841269]
[1760550180970,0.07968974,110890.0,110880.0,0.18037518]